bitfinex/quotes_ETHUSD_20250715
["timestamp","ask_amount","ask_price","bid_price","bid_amount"]
[1752576877402,0.002,2976.9,2976.6,0.1682]
[1752576877902,0.002,2976.9,2976.6,3.52772366]
[1752576878375,0.002,2976.9,2976.7,3.35939282]
[1752576879005,0.002,2976.9,2976.6,3.98097739]
[1752576879502,0.002,2976.9,2976.7,3.35940129]
[1752576881502,0.002,2976.9,2976.6,3.98101352]
[1752576882015,0.002,2976.9,2976.6,0.6215]
[1752576882697,0.002,2976.9,2976.7,3.35942378]
[1752576883900,0.002,2976.9,2976.8,3.35931201]
[1752576884104,0.002,2976.9,2976.8,3.81261201]
[1752576884414,0.002,2976.9,2976.7,3.35937753]
[1752576884621,0.002,2976.9,2976.8,3.35931201]
[1752576885234,0.002,2976.9,2976.8,3.81261201]
[1752576885691,0.002,2976.9,2976.8,3.35931201]
[1752576886178,0.002,2976.9,2976.8,3.81261201]
[1752576886378,0.002,2976.9,2976.8,4.59197395]
[1752576887186,0.002,2976.9,2976.8,3.81261201]
[1752576890291,0.002,2976.9,2976.8,3.97981201]
[1752576892615,0.002,2976.9,2976.8,9.07681201]
[1752576894284,0.002,2976.9,2976.8,9.83541201]
[1752576897310,0.002,2976.9,2976.8,3.52651201]
[1752576897526,0.002,2976.9,2976.8,9.07681201]
[1752576897709,0.002,2976.9,2976.8,10.32053512]
[1752576899229,0.002,2976.9,2976.8,4.77023512]
[1752576899549,0.778,2976.9,2976.6,0.001]
[1752576899716,0.465,2976.8,2976.6,3.52766721]
[1752576899898,0.778,2976.9,2976.7,3.35940056]
[1752576900662,0.778,2976.9,2976.8,3.35931201]
[1752576901917,0.002,2976.9,2976.8,3.82301201]
[1752576902153,0.002,2976.9,2976.8,3.99021201]
[1752576902900,0.002,2976.9,2976.8,0.1672]
[1752576903138,0.002,2976.9,2976.8,3.35931201]
[1752576904634,0.002,2976.9,2976.6,0.1682]
[1752576904807,0.002,2976.9,2976.8,0.001]
[1752576906266,0.002,2976.9,2976.8,3.36031201]
[1752576906620,0.002,2976.9,2976.8,0.001]
[1752576907921,0.002,2976.9,2976.8,3.36031201]
[1752576908142,0.002,2976.9,2976.8,0.001]
[1752576908455,0.002,2976.9,2976.8,3.36031201]
[1752576909260,0.002,2976.9,2976.8,0.001]
[1752576909760,5.098,2976.9,2976.8,0.001]
[1752576909933,5.563,2976.9,2976.8,0.001]
[1752576910132,8.92219916,2976.9,2976.8,0.001]
[1752576910451,5.563,2976.9,2976.8,0.001]
[1752576910971,5.098,2976.9,2976.8,0.001]
[1752576914377,6.50582004,2976.9,2976.8,0.001]
[1752576914748,6.04082004,2976.9,2976.8,0.001]
[1752576917253,5.098,2976.9,2976.8,0.001]
[1752576919981,8.45719916,2976.9,2976.8,0.001]
[1752576920163,9.73949916,2976.9,2976.8,0.001]
[1752576921125,19.73949916,2976.9,2976.8,0.001]
[1752576928893,28.11949916,2976.9,2976.8,0.001]
[1752576929200,58.11949916,2976.9,2976.8,1e-08]
[1752576930573,4.68192486,2976.7,2976.6,1e-08]
[1752576930794,34.36025777,2976.7,2976.6,1e-08]
[1752576931308,34.78835777,2976.7,2976.6,1e-08]
[1752576931615,13.90953772,2976.6,2976.5,1e-08]
[1752576931814,44.84923772,2976.6,2976.5,1e-08]
[1752576932114,45.27733772,2976.6,2976.5,1e-08]
[1752576932990,53.10733772,2976.6,2976.5,1e-08]
[1752576934364,58.20333772,2976.6,2976.5,1e-08]
[1752576935671,14.19065381,2975.7,2975.6,0.001]
[1752576935884,19.28665381,2975.7,2975.6,0.001]
[1752576936261,19.71475381,2975.7,2975.6,0.001]
[1752576937193,19.66995381,2975.7,2975.6,0.001]
[1752576937511,58.04995381,2975.7,2975.6,0.001]
[1752576938099,28.04995381,2975.7,2975.6,0.001]
[1752576938271,58.04995381,2975.7,2975.6,0.001]
[1752576941335,57.79064636,2975.7,2975.6,0.001]
[1752576941475,58.21874636,2975.7,2975.6,0.001]
[1752576943277,21.97585381,2975.7,2975.6,0.001]
[1752576943477,27.07285381,2975.7,2975.6,0.001]
[1752576943674,27.50095381,2975.7,2975.6,0.001]
[1752576944324,28.05095381,2975.7,2975.6,0.001]
[1752576944817,28.21443902,2975.7,2975.6,0.001]
[1752576947181,23.11743902,2975.7,2975.6,0.001]
[1752576947379,28.21443902,2975.7,2975.6,0.001]
[1752576952032,28.05095381,2975.7,2975.6,0.001]
[1752576955621,27.62285381,2975.7,2975.6,0.001]
[1752576955992,21.97585381,2975.7,2975.6,0.001]
[1752576956195,34.35855381,2975.7,2975.6,0.001]
[1752576956792,19.26155381,2975.7,2975.6,0.001]
[1752576957131,34.35855381,2975.7,2975.6,0.4616]
[1752576959185,34.35855381,2975.7,2975.6,0.001]
[1752576959321,41.66218672,2975.7,2975.6,0.001]
[1752576961936,34.35855381,2975.7,2975.6,0.434]
[1752576962152,29.26155381,2975.7,2975.6,0.434]
[1752576962353,34.35855381,2975.7,2975.6,0.434]
[1752576963747,34.35855381,2975.7,2975.6,0.001]
[1752576964932,65.60615381,2975.7,2975.6,0.001]
[1752576965659,66.15615381,2975.7,2975.6,0.001]
[1752576971570,35.15545381,2975.7,2975.6,0.001]
[1752576971794,34.35855381,2975.7,2975.6,0.001]
[1752576972231,64.35855381,2975.7,2975.6,0.001]
[1752576972432,64.80925381,2975.7,2975.6,0.001]
[1752576972860,14.07866675,2975.6,2975.5,0.001]
[1752576973057,19.17566675,2975.6,2975.5,0.001]
[1752576973250,19.62636675,2975.6,2975.5,0.001]
[1752576974384,19.17566675,2975.6,2975.5,0.001]
[1752576974573,19.62636675,2975.6,2975.5,0.001]
[1752576976755,58.28856675,2975.6,2975.5,1e-08]
[1752576991707,60.30856675,2975.6,2975.5,1e-08]
[1752576992915,60.31056675,2975.6,2975.5,1e-08]
[1752576994978,57.83986675,2975.6,2975.5,1e-08]
[1752576995309,57.83886675,2975.6,2975.5,1e-08]
[1752576995500,57.00666675,2975.6,2975.5,1e-08]
[1752577000937,27.00666675,2975.6,2975.5,1e-08]
[1752577001097,57.00666675,2975.6,2975.5,1e-08]
[1752577001439,51.91066675,2975.6,2975.5,0.47460001]
[1752577001609,11.36066675,2975.6,2975.5,1.25610001]
[1752577001809,16.45666675,2975.6,2975.5,1.25610001]
[1752577002241,8.0,2975.6,2975.5,1.25610001]
[1752577002449,0.17,2975.6,2975.5,1.25610001]
[1752577002768,0.17,2975.6,2975.5,4.61687971]
[1752577002943,5.266,2975.6,2975.5,5.43145623]
[1752577004755,5.266,2975.6,2975.5,2.07067653]
[1752577006230,5.266,2975.6,2975.5,1.25610001]
[1752577011136,5.266,2975.6,2975.5,4.61687971]
[1752577011340,5.098,2975.6,2975.5,4.61687971]
[1752577016375,0.002,2975.6,2975.5,4.61687971]
[1752577016878,0.002,2975.6,2975.5,4.6504875]
[1752577017081,0.002,2975.6,2975.5,5.46842452]
[1752577017266,0.002,2975.6,2975.5,5.43481673]
[1752577017667,0.002,2975.6,2975.5,11.95114964]
[1752577017851,0.22000004,2975.8,2975.7,3.36055381]
[1752577018057,0.22000004,2975.8,2975.7,4.16235381]
[1752577018271,5.093,2976.2,2976.1,4.16190214]
[1752577018472,5.093,2976.2,2976.1,4.63650214]
[1752577018851,5.093,2976.2,2976.1,4.80370214]
[1752577021183,0.002,2976.5,2976.4,4.17746347]
[1752577021373,5.095,2976.5,2976.4,4.17746347]
[1752577021687,5.095,2976.5,2976.4,5.59317664]
[1752577025362,0.002,2976.5,2976.4,5.59317664]
[1752577025550,5.094,2976.5,2976.4,5.59317664]
[1752577026396,0.002,2976.5,2976.4,5.59317664]
[1752577026693,5.094,2976.5,2976.4,5.59317664]
[1752577029654,0.002,2976.5,2976.4,5.59317664]
[1752577029988,5.093,2976.5,2976.4,5.62677427]
[1752577030328,0.002,2976.5,2976.4,5.62677427]
[1752577031690,0.002,2976.5,2976.4,5.59317664]
[1752577039689,0.002,2976.5,2976.4,10.68317664]
[1752577040119,5.09179618,2976.8,2976.7,3.35942486]
[1752577040373,5.09179618,2976.8,2976.7,3.80922486]
[1752577040480,0.002,2976.9,2976.8,4.12601201]
[1752577040820,0.002,2976.9,2976.8,4.57581201]
[1752577041426,0.002,2977.1,2977.0,4.16088632]
[1752577041639,0.002,2977.1,2977.0,21.26081009]
[1752577041640,1e-08,2977.1,2977.0,21.26081009]
[1752577041939,1e-08,2977.1,2977.0,29.46697968]
[1752577042445,1e-08,2977.1,2977.0,22.95064677]
[1752577042615,1e-08,2977.1,2977.0,22.40064677]
[1752577043115,1e-08,2977.1,2977.0,29.46697968]
[1752577044513,1e-08,2977.1,2977.0,22.95064677]
[1752577049005,1e-08,2977.1,2977.0,17.31064677]
[1752577049253,1e-08,2977.1,2977.0,22.39864677]
[1752577049458,1e-08,2977.1,2977.0,17.31064677]
[1752577049800,1e-08,2977.1,2977.0,7.31064677]
[1752577050001,1e-08,2977.1,2977.0,6.50884677]
[1752577050258,1e-08,2977.1,2977.0,3.55987718]
[1752577050421,1e-08,2977.1,2977.0,3.52628632]
[1752577054417,1e-08,2977.1,2977.0,3.99328632]
[1752577055219,1e-08,2977.1,2977.0,3.52628632]
[1752577056058,1e-08,2977.1,2977.0,0.1672]
[1752577056208,1e-08,2977.1,2977.0,3.52628632]
[1752577057054,1e-08,2977.1,2977.0,3.99328632]
[1752577057352,1e-08,2977.1,2977.0,3.52628632]
[1752577058342,1e-08,2977.1,2977.0,0.1672]
[1752577058648,1e-08,2977.1,2977.0,3.52628632]
[1752577060928,1e-08,2977.1,2977.0,0.1672]
[1752577061330,1e-08,2977.1,2977.0,3.52628632]
[1752577063957,1e-08,2977.1,2977.0,3.99328632]
[1752577067249,1e-08,2977.1,2977.0,3.52628632]
[1752577067444,1e-08,2977.1,2977.0,0.1672]
[1752577067762,1e-08,2977.1,2977.0,3.52628632]
[1752577075630,1e-08,2977.1,2977.0,0.1672]
[1752577075928,1e-08,2977.1,2976.8,3.52643941]
[1752577076295,1e-08,2977.1,2976.6,3.35946793]
[1752577076296,0.805,2977.0,2976.6,3.35946117]
[1752577076490,5.087,2976.9,2976.7,0.1672]
[1752577077328,5.087,2976.9,2976.5,3.35954931]
[1752577077527,5.087,2976.9,2976.5,0.6342]
[1752577077692,5.087,2976.9,2976.6,3.35952654]
[1752577077893,5.087,2976.9,2976.5,3.99380041]
[1752577079157,5.087,2976.9,2976.6,3.35948563]
[1752577080770,0.4318,2976.8,2976.5,0.1672]
[1752577080959,0.8039,2976.7,2976.5,0.1672]
[1752577081263,5.087,2976.6,2976.3,3.52705406]
[1752577081474,3.35971541,2976.5,2976.3,0.1672]
[1752577081644,0.8039,2976.4,2976.0,3.3601624]
[1752577081845,5.087,2976.3,2976.0,3.3601624]
[1752577082445,5.5188,2976.3,2975.9,3.52832654]
[1752577083377,8.87871315,2976.3,2975.9,0.168]
[1752577083577,0.4318,2976.2,2975.8,3.5294387]
[1752577083780,5.2542,2976.3,2976.0,3.36018966]
[1752577084376,5.2542,2976.3,2976.0,3.36019748]
[1752577085684,5.2542,2976.3,2976.1,3.36006114]
[1752577086064,5.2542,2976.3,2976.0,3.81047242]
[1752577086263,5.2542,2976.3,2976.0,3.36017242]
[1752577087893,5.2542,2976.3,2976.1,3.3600748]
[1752577089589,5.2542,2976.3,2976.0,3.36015463]
[1752577091103,5.2542,2976.3,2976.1,3.3601018]
[1752577091304,5.2542,2976.3,2976.2,3.35998924]
[1752577091508,5.2542,2976.3,2976.1,3.36006355]
[1752577091917,5.2542,2976.3,2976.0,3.36015473]
[1752577093588,5.2542,2976.3,2975.8,0.169]
[1752577093908,3.79179114,2976.2,2975.8,3.52944076]
[1752577094100,5.087,2976.1,2975.9,3.36025059]
[1752577094303,5.087,2976.1,2975.8,3.97968118]
[1752577095538,5.087,2976.1,2975.8,3.52938118]
[1752577096029,0.599,2976.3,2976.0,3.36012296]
[1752577096235,5.088,2976.2,2975.9,3.81057146]
[1752577097110,5.088,2976.1,2976.0,3.36021498]
[1752577097308,0.8302,2976.0,2975.8,0.169]
[1752577097613,5.087,2975.9,2975.8,0.001]
[1752577098736,5.5188,2975.9,2975.8,0.001]
[1752577098924,5.087,2975.9,2975.8,0.001]
[1752577099432,0.9982,2976.0,2975.8,0.001]
[1752577099609,5.1,2975.9,2975.8,0.001]
[1752577103348,8.89212796,2975.9,2975.8,0.001]
[1752577103575,10.21718326,2975.9,2975.8,0.001]
[1752577103742,11.01838326,2975.9,2975.8,0.001]
[1752577108598,9.25852796,2975.9,2975.8,0.001]
[1752577108960,5.8982,2975.9,2975.8,0.001]
[1752577110001,0.168,2976.1,2975.9,3.36021796]
[1752577110206,5.097,2976.0,2975.9,0.4579]
[1752577110913,5.097,2976.0,2975.9,3.81822796]
[1752577112403,5.097,2976.0,2975.9,3.36032796]
[1752577113916,5.097,2976.0,2975.9,4.70420222]
[1752577114115,0.1672,2976.7,2976.6,3.35946152]
[1752577114319,5.2642,2976.7,2976.6,0.4579]
[1752577114506,5.2642,2976.7,2976.6,3.81743772]
[1752577114891,5.2642,2976.7,2976.6,0.4579]
[1752577115417,5.2642,2976.7,2976.5,3.35959527]
[1752577115849,5.2642,2976.7,2976.4,0.4579]
[1752577116055,5.2642,2976.7,2976.2,0.957]
[1752577116056,6.93324534,2976.7,2976.2,0.1672]
[1752577116205,0.9849,2976.6,2976.0,0.6259]
[1752577116545,5.099,2976.5,2976.2,3.35993116]
[1752577116744,5.099,2976.5,2976.0,0.6259]
[1752577117143,5.099,2976.5,2976.1,0.4579]
[1752577117343,5.099,2976.5,2976.0,0.168]
[1752577117648,0.1672,2976.3,2975.9,3.36032796]
[1752577117842,5.098,2976.2,2975.9,3.36032796]
[1752577118045,5.098,2976.2,2975.9,3.36027205]
[1752577118249,5.098,2976.2,2975.9,3.81817205]
[1752577119333,5.098,2976.2,2975.8,0.169]
[1752577119545,0.9734,2976.1,2975.8,0.001]
[1752577119746,5.098,2976.0,2975.8,0.001]
[1752577121543,5.5447,2976.0,2975.8,0.001]
[1752577121725,5.098,2976.0,2975.8,0.001]
[1752577123539,8.45821906,2976.0,2975.8,0.001]
[1752577123746,5.098,2976.0,2975.8,0.001]
[1752577132245,5.098,2976.0,2975.9,3.36032796]
[1752577132576,0.8047,2976.4,2976.0,3.36015358]
[1752577132577,0.1672,2976.2,2976.0,3.36015358]
[1752577132732,5.094,2976.1,2976.0,3.81805358]
[1752577133880,5.094,2976.1,2976.0,0.4579]
[1752577134763,5.094,2976.1,2976.0,3.81811505]
[1752577135137,5.094,2976.1,2976.0,3.36021505]
[1752577136154,5.094,2976.1,2976.0,3.81811505]
[1752577136578,0.1672,2976.2,2976.1,3.36010214]
[1752577136875,5.2582,2976.2,2976.1,3.81800214]
[1752577137280,5.091,2976.2,2976.1,4.29585883]
[1752577139648,0.1672,2976.5,2976.4,3.35976347]
[1752577139849,5.091,2976.5,2976.4,3.35976347]
[1752577140068,5.091,2976.5,2976.4,3.80906347]
[1752577140548,0.1672,2976.7,2976.6,3.35953772]
[1752577140744,5.2592,2976.7,2976.6,3.35953772]
[1752577140970,5.092,2976.7,2976.6,4.52568255]
[1752577141196,5.092,2976.7,2976.6,5.49168255]
[1752577142263,0.16720001,2977.1,2976.6,5.49168255]
[1752577142264,0.16720001,2977.1,2976.9,3.35911236]
[1752577142459,0.16720001,2977.1,2977.0,3.35908632]
[1752577142664,5.25920001,2977.1,2977.0,3.35908632]
[1752577145061,5.25920001,2977.1,2976.9,3.35916641]
[1752577146480,5.25920001,2977.1,2977.0,3.35908632]
[1752577147301,5.25920001,2977.1,2976.9,3.80844258]
[1752577147812,5.25920001,2977.1,2977.0,3.35908632]
[1752577148178,5.25920001,2977.1,2976.9,3.80845153]
[1752577148802,5.25920001,2977.1,2977.0,3.35908632]
[1752577149203,5.25920001,2977.1,2977.0,3.80838632]
[1752577149406,5.09200001,2977.1,2977.0,4.18922495]
[1752577151396,1e-08,2977.1,2977.0,4.18922495]
[1752577151598,5.08800001,2977.1,2977.0,4.18922495]
[1752577154188,5.08800001,2977.1,2977.0,3.73992495]
[1752577154389,5.08800001,2977.1,2977.0,3.35908632]
[1752577156414,1e-08,2977.1,2977.0,4.17758632]
[1752577156594,5.08800001,2977.1,2977.0,4.62688632]
[1752577157545,5.08800001,2977.1,2977.0,3.80838632]
[1752577159612,5.08800001,2977.1,2977.0,0.4493]
[1752577159814,5.08800001,2977.1,2977.0,3.80838632]
[1752577161292,5.08800001,2977.1,2977.0,3.35908632]
[1752577161496,5.08900001,2977.1,2977.0,3.35908632]
[1752577162534,5.08900001,2977.1,2977.0,3.80838632]
[1752577166059,5.08900001,2977.1,2977.0,0.4493]
[1752577166570,5.08900001,2977.1,2977.0,3.80838632]
[1752577167160,5.08900001,2977.1,2976.9,3.3591526]
[1752577167463,5.08900001,2977.1,2976.9,3.8084526]
[1752577167664,5.08900001,2977.1,2976.9,0.4493]
[1752577167821,5.08900001,2977.1,2976.4,0.4493]
[1752577167822,6.16654001,2977.1,2976.4,0.4493]
[1752577168026,5.72520001,2977.1,2976.7,3.35940472]
[1752577168227,0.469,2977.0,2976.6,0.1672]
[1752577168487,0.8118,2976.9,2976.6,0.1672]
[1752577168689,5.087,2976.8,2976.6,0.1672]
[1752577169659,5.2542,2976.8,2976.3,3.99774717]
[1752577169865,5.7258,2976.8,2976.4,3.35976347]
[1752577170454,5.2542,2976.8,2976.4,3.35976347]
[1752577170854,5.2542,2976.8,2976.4,3.83046347]
[1752577171050,5.2542,2976.8,2976.3,3.52706774]
[1752577171051,5.2542,2976.8,2976.3,0.1672]
[1752577171382,9.08515568,2976.8,2976.3,3.52705999]
[1752577171555,9.08515568,2976.8,2976.3,3.99775999]
[1752577172474,0.4716,2976.7,2976.3,0.1672]
[1752577173374,3.35943302,2976.7,2976.3,0.1672]
[1752577173579,3.83103302,2976.7,2976.3,0.1672]
[1752577173874,0.4716,2976.7,2976.3,0.1672]
[1752577174866,3.83102536,2976.7,2976.3,0.1672]
[1752577175066,3.35942536,2976.7,2976.3,0.1672]
[1752577175261,0.4716,2976.6,2976.3,0.1672]
[1752577175471,5.088,2976.5,2976.3,0.1672]
[1752577176478,5.088,2976.5,2976.1,3.36003971]
[1752577176779,5.2552,2976.5,2976.1,3.83073971]
[1752577177193,5.2552,2976.5,2976.2,0.4707]
[1752577179181,5.2552,2976.5,2976.2,3.83065509]
[1752577179887,5.2552,2976.5,2976.3,3.35986985]
[1752577179888,0.1672,2976.5,2976.3,3.35986985]
[1752577180065,0.1672,2976.5,2976.3,3.83056985]
[1752577180066,5.088,2976.4,2976.3,3.83056985]
[1752577181612,5.088,2976.4,2976.3,0.4707]
[1752577182307,5.088,2976.4,2976.1,3.83073909]
[1752577182484,5.088,2976.4,2976.2,0.4707]
[1752577182884,5.088,2976.4,2976.2,3.83065664]
[1752577183204,5.088,2976.4,2976.2,0.4707]
[1752577183783,5.088,2976.4,2976.2,3.83066752]
[1752577184000,5.088,2976.4,2976.1,4.64328107]
[1752577184375,5.088,2976.4,2976.1,3.83072996]
[1752577184576,5.088,2976.4,2976.2,3.35998715]
[1752577184799,5.088,2976.4,2976.2,3.83068715]
[1752577186371,0.1672,2976.5,2976.3,3.35983246]
[1752577186577,5.088,2976.4,2976.3,3.83057635]
[1752577186775,5.088,2976.4,2976.3,0.4707]
[1752577187586,5.088,2976.4,2976.3,3.83057635]
[1752577188110,5.088,2976.4,2976.3,0.4707]
[1752577189504,5.088,2976.4,2976.1,3.36104749]
[1752577189807,5.088,2976.4,2976.1,3.83174749]
[1752577190115,5.088,2976.4,2976.2,3.35997129]
[1752577190478,5.088,2976.4,2976.2,3.83067129]
[1752577190982,5.088,2976.4,2976.2,0.4707]
[1752577191187,5.088,2976.4,2976.1,3.36104017]
[1752577191422,5.8464,2976.4,2976.1,3.83174017]
[1752577192822,0.7584,2976.4,2976.1,0.001]
[1752577192980,5.2552,2976.5,2976.3,3.35980676]
[1752577193321,5.2552,2976.5,2976.2,3.35994426]
[1752577193518,5.2552,2976.5,2976.3,0.4707]
[1752577194900,5.2552,2976.5,2976.1,3.83174584]
[1752577195625,5.2552,2976.5,2976.2,0.4707]
[1752577196229,5.2552,2976.5,2976.1,0.001]
[1752577196403,8.61490609,2976.5,2976.1,0.001]
[1752577196608,5.7268,2976.5,2976.1,0.001]
[1752577196808,5.7268,2976.5,2976.1,0.4717]
[1752577197242,9.0864563,2976.5,2976.1,0.4717]
[1752577197730,5.2552,2976.5,2976.1,0.4717]
[1752577197935,8.61490746,2976.5,2976.1,0.4717]
[1752577198100,9.08650746,2976.5,2976.1,0.001]
[1752577199938,6.57563453,2976.5,2976.1,0.001]
[1752577200140,0.8332,2976.4,2976.1,0.001]
[1752577200464,5.2552,2976.5,2976.1,0.436]
[1752577200737,8.61488215,2976.5,2976.1,0.436]
[1752577200924,5.2552,2976.5,2976.2,0.435]
[1752577201838,3.82753897,2976.4,2976.1,0.001]
[1752577201998,5.8393,2976.3,2976.1,0.001]
[1752577202403,6.307,2976.3,2976.1,0.001]
[1752577202841,9.19918317,2976.3,2976.1,0.001]
[1752577203046,9.66688317,2976.3,2976.1,0.001]
[1752577203420,5.8393,2976.3,2976.1,0.001]
[1752577204139,9.19923229,2976.3,2976.1,0.001]
[1752577204342,3.52798924,2976.2,2976.1,0.001]
[1752577204651,3.99568924,2976.2,2976.1,0.001]
[1752577205746,3.52798924,2976.2,2976.1,0.001]
[1752577205945,0.168,2976.2,2976.1,0.001]
[1752577209668,0.168,2976.2,2976.1,0.001]
[1752577210682,3.52798924,2976.2,2976.1,0.001]
[1752577211172,0.168,2976.2,2976.1,0.001]
[1752577211366,3.52798924,2976.2,2976.1,0.001]
[1752577212062,4.84746507,2976.2,2976.1,0.001]
[1752577212378,1.48747583,2976.2,2976.1,0.001]
[1752577212663,5.31516507,2976.2,2976.1,0.001]
[1752577213951,5.256,2976.2,2976.1,0.001]
[1752577214134,0.168,2976.2,2976.1,0.001]
[1752577214332,5.256,2976.2,2976.1,0.001]
[1752577214530,5.256,2976.2,2976.1,0.436]
[1752577215164,0.168,2976.2,2976.1,0.436]
[1752577215465,10.8061,2976.5,2976.1,3.79610214]
[1752577215763,5.2552,2976.4,2976.2,0.435]
[1752577215966,5.2552,2976.4,2976.1,3.79610214]
[1752577217569,0.1672,2976.4,2976.1,3.79610214]
[1752577217864,0.1672,2976.4,2976.2,3.79498483]
[1752577218076,5.088,2976.3,2976.2,3.79498483]
[1752577218584,5.088,2976.3,2976.1,3.36106566]
[1752577218763,5.088,2976.3,2976.1,3.79606566]
[1752577219379,5.088,2976.3,2976.1,0.436]
[1752577219575,5.088,2976.3,2976.1,0.001]
[1752577221692,5.088,2976.3,2976.1,3.36109551]
[1752577221853,5.088,2976.3,2976.2,3.35998924]
[1752577222053,5.088,2976.3,2976.1,3.79605315]
[1752577222589,5.088,2976.3,2976.1,0.436]
[1752577222793,5.088,2976.3,2976.1,0.001]
[1752577223157,0.1672,2976.4,2976.1,0.001]
[1752577223350,5.088,2976.3,2976.1,0.001]
[1752577224186,5.8423,2976.3,2976.1,0.001]
[1752577225086,5.088,2976.3,2976.1,3.36104226]
[1752577225683,5.088,2976.3,2976.1,0.001]
[1752577226693,8.44792118,2976.3,2976.1,0.001]
[1752577226856,10.23530281,2976.3,2976.1,0.001]
[1752577227055,3.35998924,2976.2,2976.1,0.001]
[1752577227376,0.9733,2976.2,2976.1,0.001]
[1752577227777,4.33328924,2976.2,2976.1,0.001]
[1752577228089,0.9733,2976.2,2976.1,0.001]
[1752577228464,0.168,2976.2,2976.1,0.001]
[1752577229087,0.8053,2976.9,2976.2,3.35998924]
[1752577229289,0.1672,2976.7,2976.3,0.435]
[1752577229467,1.4872,2977.0,2976.6,3.35946365]
[1752577229826,5.088,2976.9,2976.7,3.35941711]
[1752577230906,5.088,2976.9,2976.6,3.35949006]
[1752577231112,5.088,2976.9,2976.6,3.83319006]
[1752577231999,5.088,2976.9,2976.6,0.4737]
[1752577232195,5.088,2976.9,2976.5,3.52680134]
[1752577232395,10.01094849,2976.9,2976.5,0.1672]
[1752577232594,6.65168398,2976.9,2976.5,0.1672]
[1752577232775,6.65168398,2976.9,2976.5,3.52683928]
[1752577233176,6.65168398,2976.9,2976.5,0.1672]
[1752577233498,3.80454083,2976.8,2976.5,0.1672]
[1752577233671,3.80454083,2976.8,2976.1,4.19258963]
[1752577233672,3.35956831,2976.6,2976.1,4.19269603]
[1752577233874,3.35956831,2976.6,2976.1,4.00279754]
[1752577233875,5.088,2976.5,2976.1,4.00279754]
[1752577234089,8.4476591,2976.5,2976.1,0.6427]
[1752577234283,3.35977033,2976.4,2976.1,0.169]
[1752577234469,5.088,2976.3,2976.1,0.001]
[1752577235916,9.22667952,2976.3,2976.1,0.001]
[1752577236075,7.16353044,2976.3,2976.1,0.001]
[1752577236276,0.168,2976.2,2976.1,0.001]
[1752577238229,0.168,2976.2,2976.1,3.83480214]
[1752577238546,3.35957081,2976.6,2976.2,3.35992488]
[1752577238547,0.1672,2976.4,2976.2,3.35992488]
[1752577238677,10.7879,2976.8,2976.4,3.35976347]
[1752577238878,5.088,2976.7,2976.6,4.16153772]
[1752577239077,1.32,2977.0,2976.7,3.3593194]
[1752577239283,1.32,2977.0,2976.9,3.35919916]
[1752577239493,6.408,2977.0,2976.9,3.83289916]
[1752577242389,1.32,2977.0,2976.9,4.56883442]
[1752577242700,6.407,2977.0,2976.9,4.56883442]
[1752577243643,1.32,2977.0,2976.9,5.52492641]
[1752577243822,0.91664973,2977.0,2976.9,5.49133442]
[1752577244328,1e-08,2977.1,2977.0,3.35908632]
[1752577244478,1e-08,2977.1,2977.0,5.23504623]
[1752577244681,1e-08,2977.1,2977.0,6.46404623]
[1752577244925,1e-08,2977.1,2977.0,11.55404623]
[1752577245928,1e-08,2977.1,2977.0,21.55404623]
[1752577248442,1e-08,2977.1,2977.0,11.55204623]
[1752577249417,1e-08,2977.1,2977.0,6.46404623]
[1752577249605,1e-08,2977.1,2977.0,11.55204623]
[1752577251847,1e-08,2977.1,2977.0,11.55304623]
[1752577252609,1e-08,2977.1,2977.0,11.55104623]
[1752577253566,1e-08,2977.1,2977.0,6.46504623]
[1752577253708,1e-08,2977.1,2977.0,11.55104623]
[1752577253909,0.7547,2977.7,2977.4,3.35852462]
[1752577254440,0.7547,2977.7,2977.6,0.1672]
[1752577254833,0.7547,2977.7,2977.6,3.52560945]
[1752577255031,0.7547,2977.7,2977.6,0.1672]
[1752577255429,0.7547,2977.7,2977.6,3.52560945]
[1752577256045,0.7547,2977.7,2977.6,0.1672]
[1752577256346,0.7547,2977.7,2977.6,3.52560945]
[1752577256848,0.7547,2977.7,2977.6,0.1672]
[1752577258258,0.7547,2977.7,2977.6,3.52560945]
[1752577258427,0.002,2977.7,2977.6,3.52560945]
[1752577258750,0.002,2977.7,2977.6,4.73509146]
[1752577260435,0.002,2977.7,2977.6,4.26139146]
[1752577260632,0.002,2977.7,2977.6,3.52560945]
[1752577261740,0.8305,2977.7,2977.6,3.52560945]
[1752577262459,0.002,2977.7,2977.6,3.52560945]
[1752577263319,0.002,2977.7,2977.6,3.96870945]
[1752577264812,0.002,2977.7,2977.6,4.00229354]
[1752577265045,0.002,2977.7,2977.6,4.78647093]
[1752577268260,0.002,2977.8,2977.7,3.35829667]
[1752577268645,0.002,2977.8,2977.7,3.80139667]
[1752577271246,0.002,2977.8,2977.7,3.35829667]
[1752577271454,0.002,2977.8,2977.7,3.80139667]
[1752577271650,0.002,2977.8,2977.7,3.35829667]
[1752577271954,0.002,2977.8,2977.6,0.1672]
[1752577271955,0.9717,2977.8,2977.6,0.1672]
[1752577272150,0.457,2977.7,2977.6,0.1672]
[1752577273465,0.5147,2977.8,2977.6,0.1672]
[1752577273973,0.7167,2977.8,2977.6,0.1672]
[1752577274278,0.7167,2977.8,2977.6,3.52560217]
[1752577274578,0.002,2977.8,2977.7,3.80139667]
[1752577274876,5.087,2977.8,2977.7,3.80139667]
[1752577275278,5.087,2977.8,2977.7,3.35829667]
[1752577275456,0.002,2977.8,2977.7,3.35829667]